[Event "Late-Titled-Tuesday-Blitz-September-12-2023"]
[Site "Chess.com"]
[Date "2023.09.12"]
[Round "4"]
[White "Big_Finky"]
[Black "Mariia89"]
[Result "1-0"]
[WhiteElo "2274"]
[BlackElo "2007"]
[TimeControl "180+1"]
[EndTime "14:37:11 PDT"]
[Termination "Big_Finky won on time"]

1. d4 {[%clk 0:03:00.9]} 1... Nf6 {[%clk 0:02:58.6]} 2. c4 {[%clk 0:03:00.4]}
2... c5 {[%clk 0:02:58]} 3. d5 {[%clk 0:02:59.9]} 3... b5 {[%clk 0:02:57.3]} 4.
cxb5 {[%clk 0:02:59.8]} 4... a6 {[%clk 0:02:50.5]} 5. e3 {[%clk 0:02:59.8]} 5...
Qa5+ {[%clk 0:02:49.2]} 6. Nc3 {[%clk 0:02:59.1]} 6... axb5 {[%clk 0:02:49]} 7.
Bxb5 {[%clk 0:02:52.7]} 7... Ba6 {[%clk 0:02:49.5]} 8. Bxa6 {[%clk 0:02:52.1]}
8... Nxa6 {[%clk 0:02:50.3]} 9. Nf3 {[%clk 0:02:44.8]} 9... d6 {[%clk
0:02:49.5]} 10. O-O {[%clk 0:02:44.3]} 10... g6 {[%clk 0:02:48.2]} 11. e4 {[%clk
0:02:44.1]} 11... Bg7 {[%clk 0:02:47.6]} 12. e5 {[%clk 0:02:44.4]} 12... dxe5
{[%clk 0:02:44.7]} 13. Nxe5 {[%clk 0:02:45.3]} 13... O-O {[%clk 0:02:42.3]} 14.
Nc6 {[%clk 0:02:44.9]} 14... Qc7 {[%clk 0:02:40.8]} 15. Qf3 {[%clk 0:02:41.4]}
15... Rfe8 {[%clk 0:02:04.2]} 16. Bf4 {[%clk 0:02:38.8]} 16... Qd7 {[%clk
0:01:36.7]} 17. Rfe1 {[%clk 0:02:36.9]} 17... Rac8 {[%clk 0:01:31.3]} 18. Rad1
{[%clk 0:02:27.8]} 18... Nb4 {[%clk 0:01:21.1]} 19. Ne5 {[%clk 0:02:18.3]} 19...
Qf5 {[%clk 0:01:15.5]} 20. g4 {[%clk 0:01:56.4]} 20... Nxg4 {[%clk 0:00:36.4]}
21. Qxg4 {[%clk 0:01:49.1]} 21... Qxg4+ {[%clk 0:00:16.4]} 22. Nxg4 {[%clk
0:01:50]} 22... Nc2 {[%clk 0:00:15]} 23. Rf1 {[%clk 0:00:33.3]} 23... Nd4 {[%clk
0:00:10.2]} 24. Be5 {[%clk 0:00:28.9]} 24... Nf3+ {[%clk 0:00:09.2]} 25. Kg2
{[%clk 0:00:25.3]} 25... Nxe5 {[%clk 0:00:09.2]} 26. Nxe5 {[%clk 0:00:26]} 26...
Bxe5 {[%clk 0:00:10.1]} 27. Rfe1 {[%clk 0:00:25.1]} 27... Bd6 {[%clk 0:00:10.3]}
28. Re4 {[%clk 0:00:21.5]} 28... Rb8 {[%clk 0:00:08.2]} 29. Rd2 {[%clk
0:00:21.4]} 29... Rb4 {[%clk 0:00:07.4]} 30. Rde2 {[%clk 0:00:21]} 30... Reb8
{[%clk 0:00:06.6]} 31. Rxb4 {[%clk 0:00:19.9]} 31... Rxb4 {[%clk 0:00:07.1]} 32.
Ne4 {[%clk 0:00:19.9]} 32... Be5 {[%clk 0:00:05.9]} 33. Nxc5 {[%clk 0:00:19]}
33... Bxb2 {[%clk 0:00:05.8]} 34. Nd3 {[%clk 0:00:18.3]} 34... Rg4+ {[%clk
0:00:03.7]} 35. Kf3 {[%clk 0:00:17.4]} 1-0

[Event "Late-Titled-Tuesday-Blitz-September-12-2023"]
[Site "Chess.com"]
[Date "2023.09.12"]
[Round "4"]
[White "Aleksandar-Topalov"]
[Black "wadsy27"]
[Result "0-1"]
[WhiteElo "2363"]
[BlackElo "2611"]
[TimeControl "180+1"]
[EndTime "14:37:12 PDT"]
[Termination "wadsy27 won on time"]

1. b3 {[%clk 0:03:00.9]} 1... d5 {[%clk 0:02:59.9]} 2. Bb2 {[%clk 0:03:00.4]}
2... c6 {[%clk 0:02:59.7]} 3. Nf3 {[%clk 0:02:58.6]} 3... Nf6 {[%clk 0:03:00]}
4. g3 {[%clk 0:02:58.6]} 4... Bg4 {[%clk 0:02:50]} 5. Bg2 {[%clk 0:02:58.2]}
5... Nbd7 {[%clk 0:02:50.4]} 6. O-O {[%clk 0:02:58]} 6... e6 {[%clk 0:02:51.3]}
7. d3 {[%clk 0:02:52.6]} 7... a5 {[%clk 0:02:51.6]} 8. a3 {[%clk 0:02:52.5]}
8... Be7 {[%clk 0:02:51]} 9. Nbd2 {[%clk 0:02:51]} 9... O-O {[%clk 0:02:51.1]}
10. Qe1 {[%clk 0:02:50.4]} 10... b5 {[%clk 0:02:44.9]} 11. e4 {[%clk 0:02:49.9]}
11... Bxf3 {[%clk 0:02:44.6]} 12. Nxf3 {[%clk 0:02:48.7]} 12... dxe4 {[%clk
0:02:43.4]} 13. dxe4 {[%clk 0:02:48.5]} 13... a4 {[%clk 0:02:42.6]} 14. e5
{[%clk 0:02:37.7]} 14... Nd5 {[%clk 0:02:41.7]} 15. c4 {[%clk 0:02:37]} 15...
N5b6 {[%clk 0:02:31.6]} 16. cxb5 {[%clk 0:02:34.3]} 16... axb3 {[%clk
0:02:24.3]} 17. Nd4 {[%clk 0:02:23.7]} 17... c5 {[%clk 0:02:10.2]} 18. Nc6
{[%clk 0:02:10.4]} 18... Qe8 {[%clk 0:02:10]} 19. Nxe7+ {[%clk 0:01:04.2]} 19...
Qxe7 {[%clk 0:02:10.7]} 20. Bxa8 {[%clk 0:01:04.1]} 20... Rxa8 {[%clk
0:02:10.7]} 21. Qe3 {[%clk 0:00:58.7]} 21... c4 {[%clk 0:02:02.5]} 22. a4 {[%clk
0:00:57.4]} 22... Rxa4 {[%clk 0:01:47.7]} 23. Rxa4 {[%clk 0:00:56.5]} 23... Nxa4
{[%clk 0:01:48.4]} 24. Bd4 {[%clk 0:00:51.6]} 24... Qb4 {[%clk 0:01:41.8]} 25.
Rc1 {[%clk 0:00:31.1]} 25... Qxb5 {[%clk 0:01:30.9]} 26. Qd2 {[%clk 0:00:24.7]}
26... h6 {[%clk 0:01:23.6]} 27. Ba1 {[%clk 0:00:19.9]} 27... Ndc5 {[%clk
0:01:10.5]} 28. Qd8+ {[%clk 0:00:16.4]} 28... Kh7 {[%clk 0:01:10.4]} 29. Qd4
{[%clk 0:00:12.6]} 29... Nd3 {[%clk 0:01:06.2]} 30. Rxc4 {[%clk 0:00:10.6]}
30... b2 {[%clk 0:01:02.8]} 31. Bxb2 {[%clk 0:00:10.1]} 31... Naxb2 {[%clk
0:01:02.5]} 32. Qe4+ {[%clk 0:00:09.6]} 32... g6 {[%clk 0:01:02.6]} 33. Rc7
{[%clk 0:00:08.8]} 33... Nxe5 {[%clk 0:00:50.3]} 34. Qf4 {[%clk 0:00:04.7]}
34... Kg7 {[%clk 0:00:44]} 35. Qd4 {[%clk 0:00:04.6]} 35... Nd3 {[%clk
0:00:31.9]} 36. f4 {[%clk 0:00:04.6]} 36... Qb1+ {[%clk 0:00:31.9]} 37. Kg2
{[%clk 0:00:05]} 37... Qa2+ {[%clk 0:00:29.5]} 38. Kg1 {[%clk 0:00:05.1]} 38...
Qa5 {[%clk 0:00:22.7]} 39. fxe5 {[%clk 0:00:01.6]} 39... Qxc7 {[%clk 0:00:22.6]}
40. Qxd3 {[%clk 0:00:02.1]} 40... Qxe5 {[%clk 0:00:22.6]} 0-1

[Event "Late-Titled-Tuesday-Blitz-September-12-2023"]
[Site "Chess.com"]
[Date "2023.09.12"]
[Round "4"]
[White "RichardLeyvaP"]
[Black "NovikovaGalina"]
[Result "1-0"]
[WhiteElo "2615"]
[BlackElo "2426"]
[TimeControl "180+1"]
[EndTime "14:37:12 PDT"]
[Termination "RichardLeyvaP won by resignation"]

1. e4 {[%clk 0:02:59.4]} 1... e6 {[%clk 0:02:58.6]} 2. d4 {[%clk 0:02:59.4]}
2... d5 {[%clk 0:02:59.5]} 3. Nc3 {[%clk 0:02:59.7]} 3... Bb4 {[%clk 0:02:59.1]}
4. e5 {[%clk 0:02:59.7]} 4... c5 {[%clk 0:02:59.3]} 5. a3 {[%clk 0:03:00.1]}
5... Bxc3+ {[%clk 0:03:00]} 6. bxc3 {[%clk 0:03:00.9]} 6... Ne7 {[%clk
0:03:00.6]} 7. Qg4 {[%clk 0:03:01.1]} 7... Kf8 {[%clk 0:03:01.3]} 8. Bd3 {[%clk
0:02:59.3]} 8... Qa5 {[%clk 0:03:01.5]} 9. Bd2 {[%clk 0:02:58.8]} 9... Qa4
{[%clk 0:03:02.1]} 10. Ra2 {[%clk 0:02:27.4]} 10... Nbc6 {[%clk 0:03:01.7]} 11.
Nf3 {[%clk 0:02:26.9]} 11... b6 {[%clk 0:03:01.8]} 12. O-O {[%clk 0:02:26.4]}
12... Ba6 {[%clk 0:03:02.3]} 13. Bxa6 {[%clk 0:02:18.8]} 13... Qxa6 {[%clk
0:03:03.2]} 14. dxc5 {[%clk 0:02:17.2]} 14... bxc5 {[%clk 0:03:02.8]} 15. Be3
{[%clk 0:02:13.1]} 15... Qa5 {[%clk 0:02:42.4]} 16. Rb1 {[%clk 0:02:11.3]} 16...
Nf5 {[%clk 0:02:34.6]} 17. Bd2 {[%clk 0:02:06.8]} 17... Qc7 {[%clk 0:02:30.6]}
18. Qf4 {[%clk 0:01:57.5]} 18... Rb8 {[%clk 0:02:26.6]} 19. Rab2 {[%clk
0:01:57.5]} 19... Rxb2 {[%clk 0:02:26]} 20. Rxb2 {[%clk 0:01:58.4]} 20... h6
{[%clk 0:02:25.9]} 21. g4 {[%clk 0:01:52.6]} 21... Nfe7 {[%clk 0:02:26.1]} 22.
Be3 {[%clk 0:01:51.8]} 22... c4 {[%clk 0:02:20.5]} 23. Bc5 {[%clk 0:01:49.4]}
23... Kg8 {[%clk 0:02:20.6]} 24. Bd6 {[%clk 0:01:47.6]} 24... Qd7 {[%clk
0:02:19.4]} 25. Qe3 {[%clk 0:01:38.8]} 25... Kh7 {[%clk 0:02:14.5]} 26. h4
{[%clk 0:01:37.2]} 26... Nc8 {[%clk 0:02:05.7]} 27. Bc5 {[%clk 0:01:35.1]} 27...
Re8 {[%clk 0:01:30.5]} 28. Bd4 {[%clk 0:01:32.1]} 28... Nxd4 {[%clk 0:01:29.9]}
29. cxd4 {[%clk 0:01:31.9]} 29... Nb6 {[%clk 0:01:23.9]} 30. h5 {[%clk 0:01:31]}
30... c3 {[%clk 0:01:12]} 31. Qxc3 {[%clk 0:01:28.6]} 31... Rc8 {[%clk
0:01:12.5]} 32. Qd3+ {[%clk 0:01:27.7]} 32... Kg8 {[%clk 0:01:13.1]} 33. g5
{[%clk 0:01:21]} 33... hxg5 {[%clk 0:01:10.5]} 34. Nxg5 {[%clk 0:01:20.7]} 34...
Nc4 {[%clk 0:00:55.2]} 35. Qh7+ {[%clk 0:01:19.4]} 35... Kf8 {[%clk 0:00:55.6]}
36. Qh8+ {[%clk 0:01:01.7]} 36... Ke7 {[%clk 0:00:55.4]} 37. Qxg7 {[%clk
0:01:02.6]} 37... Rf8 {[%clk 0:00:34.5]} 38. Rb3 {[%clk 0:00:45]} 38... Nb6
{[%clk 0:00:20.3]} 39. h6 {[%clk 0:00:43.1]} 39... Qe8 {[%clk 0:00:17.5]} 40. h7
{[%clk 0:00:41.3]} 40... Kd8 {[%clk 0:00:15.9]} 41. h8=Q {[%clk 0:00:31.8]}
41... Rxh8 {[%clk 0:00:15.4]} 42. Qxh8 {[%clk 0:00:27.1]} 42... Qxh8 {[%clk
0:00:14.7]} 43. Nxf7+ {[%clk 0:00:27.5]} 43... Ke7 {[%clk 0:00:15.5]} 44. Nxh8
{[%clk 0:00:28.4]} 44... Nc4 {[%clk 0:00:15.7]} 45. Ng6+ {[%clk 0:00:27.4]}
45... Kf7 {[%clk 0:00:16]} 46. Nf4 {[%clk 0:00:27.7]} 46... Nd2 {[%clk
0:00:15.4]} 47. Kg2 {[%clk 0:00:26.3]} 47... Ne4 {[%clk 0:00:11.9]} 48. Rb7+
{[%clk 0:00:25.8]} 1-0

[Event "Late-Titled-Tuesday-Blitz-September-12-2023"]
[Site "Chess.com"]
[Date "2023.09.12"]
[Round "4"]
[White "Dewarfd"]
[Black "Chessdude1987"]
[Result "0-1"]
[WhiteElo "2207"]
[BlackElo "2426"]
[TimeControl "180+1"]
[EndTime "14:37:18 PDT"]
[Termination "Chessdude1987 won by checkmate"]

1. d4 {[%clk 0:03:00]} 1... e6 {[%clk 0:03:00.4]} 2. e3 {[%clk 0:03:00.8]} 2...
f5 {[%clk 0:03:00.6]} 3. Nf3 {[%clk 0:03:00.6]} 3... Nf6 {[%clk 0:03:01.2]} 4.
Be2 {[%clk 0:03:01.5]} 4... Be7 {[%clk 0:03:01.4]} 5. O-O {[%clk 0:03:02.4]}
5... b6 {[%clk 0:03:01.9]} 6. c4 {[%clk 0:03:02.9]} 6... Bb7 {[%clk 0:03:02.3]}
7. b4 {[%clk 0:03:03.3]} 7... Ne4 {[%clk 0:03:02.2]} 8. Bb2 {[%clk 0:03:02.9]}
8... O-O {[%clk 0:02:57.8]} 9. b5 {[%clk 0:03:02.5]} 9... Rf6 {[%clk 0:02:50.6]}
10. Nfd2 {[%clk 0:03:02.4]} 10... d5 {[%clk 0:02:46]} 11. cxd5 {[%clk
0:03:01.7]} 11... exd5 {[%clk 0:02:46]} 12. Nc3 {[%clk 0:02:59.1]} 12... Nd7
{[%clk 0:02:41.4]} 13. a4 {[%clk 0:02:54.9]} 13... Rh6 {[%clk 0:02:33]} 14.
Ndxe4 {[%clk 0:02:50.9]} 14... fxe4 {[%clk 0:02:26.8]} 15. f4 {[%clk 0:02:35.4]}
15... exf3 {[%clk 0:02:23]} 16. Bxf3 {[%clk 0:02:31.5]} 16... Nf6 {[%clk
0:02:22.8]} 17. Qb3 {[%clk 0:02:11.1]} 17... Kh8 {[%clk 0:02:13.1]} 18. Ba3
{[%clk 0:02:07.8]} 18... Bxa3 {[%clk 0:02:11.4]} 19. Qxa3 {[%clk 0:02:07.3]}
19... a6 {[%clk 0:02:06.6]} 20. Rae1 {[%clk 0:01:54.4]} 20... axb5 {[%clk
0:02:06]} 21. Nxb5 {[%clk 0:01:54.9]} 21... Ra5 {[%clk 0:01:59.5]} 22. Qb3
{[%clk 0:01:54.4]} 22... Bc6 {[%clk 0:01:35.2]} 23. Rc1 {[%clk 0:01:46.4]} 23...
Bxb5 {[%clk 0:01:22.1]} 24. axb5 {[%clk 0:01:45.8]} 24... Qd6 {[%clk 0:01:17.3]}
25. h3 {[%clk 0:01:45.6]} 25... Rg6 {[%clk 0:01:12.1]} 26. Bxd5 {[%clk
0:01:35.7]} 26... Ra3 {[%clk 0:01:06.9]} 27. Ra1 {[%clk 0:01:14.8]} 27... Rxa1
{[%clk 0:00:36.1]} 28. Rxa1 {[%clk 0:01:15.6]} 28... h5 {[%clk 0:00:35.8]} 29.
Ra8+ {[%clk 0:01:05.1]} 29... Kh7 {[%clk 0:00:35.7]} 30. Bg8+ {[%clk 0:01:04.6]}
30... Kh6 {[%clk 0:00:36]} 31. Bf7 {[%clk 0:01:04.4]} 31... Rg3 {[%clk
0:00:25.1]} 32. Qe6 {[%clk 0:00:33.5]} 32... Qxe6 {[%clk 0:00:21.1]} 33. Bxe6
{[%clk 0:00:34.3]} 33... Rxe3 {[%clk 0:00:21.3]} 34. Rc8 {[%clk 0:00:30.7]}
34... Rxe6 {[%clk 0:00:20.1]} 35. Rxc7 {[%clk 0:00:30.6]} 35... Rd6 {[%clk
0:00:19.6]} 36. Rc6 {[%clk 0:00:27]} 36... Rxc6 {[%clk 0:00:19.6]} 37. bxc6
{[%clk 0:00:26.8]} 37... Nd5 {[%clk 0:00:19.7]} 38. Kf2 {[%clk 0:00:26.6]} 38...
Kg5 {[%clk 0:00:19.7]} 39. Kf3 {[%clk 0:00:26.8]} 39... Kf5 {[%clk 0:00:19.5]}
40. g4+ {[%clk 0:00:27.5]} 40... hxg4+ {[%clk 0:00:19.5]} 41. hxg4+ {[%clk
0:00:28.1]} 41... Ke6 {[%clk 0:00:19.9]} 42. Ke4 {[%clk 0:00:28.2]} 42... Kd6
{[%clk 0:00:20.1]} 43. g5 {[%clk 0:00:28.2]} 43... Kxc6 {[%clk 0:00:18.8]} 44.
Ke5 {[%clk 0:00:27.5]} 44... b5 {[%clk 0:00:18.8]} 45. Ke6 {[%clk 0:00:27.3]}
45... b4 {[%clk 0:00:19.1]} 46. Kf7 {[%clk 0:00:28.1]} 46... b3 {[%clk
0:00:18.3]} 47. Kxg7 {[%clk 0:00:28.6]} 47... b2 {[%clk 0:00:18.1]} 48. Kf7
{[%clk 0:00:29.3]} 48... b1=Q {[%clk 0:00:18.3]} 49. g6 {[%clk 0:00:30.1]} 49...
Qf1+ {[%clk 0:00:18.3]} 50. Kg8 {[%clk 0:00:23.4]} 50... Qf6 {[%clk 0:00:18]}
51. g7 {[%clk 0:00:23.2]} 51... Ne7+ {[%clk 0:00:17.9]} 52. Kh7 {[%clk 0:00:23]}
52... Qh4# {[%clk 0:00:16.9]} 0-1

[Event "Late-Titled-Tuesday-Blitz-September-12-2023"]
[Site "Chess.com"]
[Date "2023.09.12"]
[Round "4"]
[White "APOKALIPSA13"]
[Black "S-Fazulyanov"]
[Result "0-1"]
[WhiteElo "2258"]
[BlackElo "2460"]
[TimeControl "180+1"]
[EndTime "14:37:24 PDT"]
[Termination "S-Fazulyanov won by resignation"]

1. e4 {[%clk 0:02:57.7]} 1... c5 {[%clk 0:02:59.5]} 2. Nf3 {[%clk 0:02:57.6]}
2... Nc6 {[%clk 0:02:59.6]} 3. d4 {[%clk 0:02:57.8]} 3... cxd4 {[%clk
0:02:59.9]} 4. c3 {[%clk 0:02:58.3]} 4... Nf6 {[%clk 0:02:59.3]} 5. e5 {[%clk
0:02:57.5]} 5... Nd5 {[%clk 0:02:59.3]} 6. cxd4 {[%clk 0:02:55.8]} 6... d6
{[%clk 0:02:58.1]} 7. Bc4 {[%clk 0:02:55.8]} 7... Nb6 {[%clk 0:02:57.6]} 8.
Bxf7+ {[%clk 0:02:56.7]} 8... Kxf7 {[%clk 0:02:57.7]} 9. Ng5+ {[%clk 0:02:57.6]}
9... Ke8 {[%clk 0:02:58.4]} 10. Qf3 {[%clk 0:02:54.1]} 10... Nxd4 {[%clk
0:02:43.5]} 11. Qf7+ {[%clk 0:02:52.4]} 11... Kd7 {[%clk 0:02:44.1]} 12. e6+
{[%clk 0:02:30.1]} 12... Kc7 {[%clk 0:02:43]} 13. Na3 {[%clk 0:02:24.6]} 13...
h6 {[%clk 0:02:37]} 14. Be3 {[%clk 0:02:24.3]} 14... Nc6 {[%clk 0:02:21.5]} 15.
Ne4 {[%clk 0:02:04.8]} 15... Nd5 {[%clk 0:02:10.3]} 16. Nxd6 {[%clk 0:01:47.9]}
16... Nxe3 {[%clk 0:02:01.8]} 17. fxe3 {[%clk 0:01:32.8]} 17... Kb8 {[%clk
0:01:56.3]} 18. Ndb5 {[%clk 0:01:23.4]} 18... Qd5 {[%clk 0:01:44.6]} 19. Rd1
{[%clk 0:00:55.5]} 19... Qxe6 {[%clk 0:01:39.7]} 20. Qf4+ {[%clk 0:00:36.7]}
20... Qe5 {[%clk 0:01:38.1]} 21. O-O {[%clk 0:00:29.2]} 21... Qxf4 {[%clk
0:01:35.2]} 22. Rxf4 {[%clk 0:00:27.9]} 22... e5 {[%clk 0:01:34.8]} 23. Rc4
{[%clk 0:00:19.2]} 23... Be6 {[%clk 0:01:29.2]} 24. Rc3 {[%clk 0:00:18]} 24...
a6 {[%clk 0:01:24.7]} 25. Nd6 {[%clk 0:00:15.1]} 25... Bxd6 {[%clk 0:01:20.9]}
26. Rxd6 {[%clk 0:00:16]} 26... Re8 {[%clk 0:01:20.3]} 27. Nc4 {[%clk
0:00:14.2]} 27... Kc7 {[%clk 0:01:17.8]} 28. Rd1 {[%clk 0:00:10.9]} 28... Rad8
{[%clk 0:01:15.1]} 29. Rdc1 {[%clk 0:00:10.4]} 29... Bxc4 {[%clk 0:01:14]} 30.
Rxc4 {[%clk 0:00:10.8]} 30... Rd2 {[%clk 0:01:12.1]} 31. R4c2 {[%clk 0:00:10.7]}
31... Rxc2 {[%clk 0:01:11.4]} 32. Rxc2 {[%clk 0:00:11.6]} 32... Rd8 {[%clk
0:01:11.8]} 33. a3 {[%clk 0:00:11.7]} 33... Rd3 {[%clk 0:01:09.5]} 34. Kf2
{[%clk 0:00:12.3]} 34... e4 {[%clk 0:01:09.6]} 35. Rc4 {[%clk 0:00:10]} 35...
Rd2+ {[%clk 0:01:08.6]} 36. Kg3 {[%clk 0:00:10.5]} 36... Rxb2 {[%clk 0:01:05.5]}
37. Rxe4 {[%clk 0:00:11.4]} 37... Rb3 {[%clk 0:01:04.9]} 38. Rg4 {[%clk
0:00:12]} 38... g5 {[%clk 0:01:02.3]} 39. Kf2 {[%clk 0:00:11.3]} 39... Rxa3
{[%clk 0:01:01.5]} 40. h4 {[%clk 0:00:12.2]} 40... Ra2+ {[%clk 0:00:59.5]} 41.
Kg3 {[%clk 0:00:10.8]} 41... Ne5 {[%clk 0:00:56.7]} 42. Re4 {[%clk 0:00:10.8]}
42... Kd6 {[%clk 0:00:55.1]} 43. hxg5 {[%clk 0:00:10.9]} 43... hxg5 {[%clk
0:00:55.8]} 44. Rd4+ {[%clk 0:00:10.9]} 44... Ke6 {[%clk 0:00:55.6]} 45. Rb4
{[%clk 0:00:11]} 45... b5 {[%clk 0:00:55]} 46. Kh3 {[%clk 0:00:11.1]} 46... Ra3
{[%clk 0:00:52.4]} 47. g3 {[%clk 0:00:09]} 47... Rxe3 {[%clk 0:00:50.9]} 48. Rb2
{[%clk 0:00:09.6]} 48... g4+ {[%clk 0:00:49.7]} 49. Kh4 {[%clk 0:00:10.2]} 49...
Kf5 {[%clk 0:00:44.7]} 50. Ra2 {[%clk 0:00:10.3]} 50... Ng6+ {[%clk 0:00:38.6]}
51. Kh5 {[%clk 0:00:09.8]} 51... Rxg3 {[%clk 0:00:37.9]} 52. Rf2+ {[%clk
0:00:08.1]} 52... Nf4+ {[%clk 0:00:36.7]} 53. Kh6 {[%clk 0:00:06.8]} 53... Ra3
{[%clk 0:00:35.5]} 54. Kg7 {[%clk 0:00:05.5]} 54... g3 {[%clk 0:00:35.5]} 55.
Rf1 {[%clk 0:00:05.4]} 55... Kg4 {[%clk 0:00:35.4]} 56. Kf7 {[%clk 0:00:06.3]}
56... g2 {[%clk 0:00:35.2]} 0-1

[Event "Late-Titled-Tuesday-Blitz-September-12-2023"]
[Site "Chess.com"]
[Date "2023.09.12"]
[Round "4"]
[White "Taran2004"]
[Black "likantrophuss"]
[Result "0-1"]
[WhiteElo "2413"]
[BlackElo "2604"]
[TimeControl "180+1"]
[EndTime "14:37:26 PDT"]
[Termination "likantrophuss won by resignation"]

1. e4 {[%clk 0:03:00.9]} 1... e6 {[%clk 0:02:58.1]} 2. d4 {[%clk 0:02:59.7]}
2... d5 {[%clk 0:02:58.4]} 3. Nd2 {[%clk 0:02:59.8]} 3... f5 {[%clk 0:02:54.3]}
4. exd5 {[%clk 0:02:54.6]} 4... exd5 {[%clk 0:02:54.3]} 5. Ngf3 {[%clk
0:02:54.7]} 5... Nf6 {[%clk 0:02:54.1]} 6. Bd3 {[%clk 0:02:50.6]} 6... Ne4
{[%clk 0:02:52.1]} 7. O-O {[%clk 0:02:49]} 7... Be7 {[%clk 0:02:49.4]} 8. Ne5
{[%clk 0:02:47.5]} 8... O-O {[%clk 0:02:49.1]} 9. f3 {[%clk 0:02:47.6]} 9... Nd6
{[%clk 0:02:46.2]} 10. c3 {[%clk 0:02:44.8]} 10... c6 {[%clk 0:02:46]} 11. Re1
{[%clk 0:02:43.6]} 11... Bf6 {[%clk 0:02:46.3]} 12. Nf1 {[%clk 0:02:43.5]} 12...
Na6 {[%clk 0:02:46]} 13. Ng3 {[%clk 0:02:41.2]} 13... g6 {[%clk 0:02:46.4]} 14.
Bh6 {[%clk 0:02:39.3]} 14... Re8 {[%clk 0:02:46.3]} 15. Qd2 {[%clk 0:02:37.7]}
15... Bd7 {[%clk 0:02:46]} 16. Bf4 {[%clk 0:02:30.7]} 16... Nf7 {[%clk
0:02:45.8]} 17. Nxf7 {[%clk 0:02:26.4]} 17... Kxf7 {[%clk 0:02:46.7]} 18. Rxe8
{[%clk 0:02:15.6]} 18... Qxe8 {[%clk 0:02:37.7]} 19. Re1 {[%clk 0:02:15.4]}
19... Qf8 {[%clk 0:02:38.1]} 20. Be5 {[%clk 0:02:10.9]} 20... Re8 {[%clk
0:02:36]} 21. f4 {[%clk 0:02:09.4]} 21... Bxe5 {[%clk 0:02:34.4]} 22. fxe5
{[%clk 0:02:09.6]} 22... Nc7 {[%clk 0:02:33.4]} 23. Rf1 {[%clk 0:02:00]} 23...
Kg8 {[%clk 0:02:25.3]} 24. h4 {[%clk 0:01:58.4]} 24... Qe7 {[%clk 0:02:08.6]}
25. Qh6 {[%clk 0:01:51.6]} 25... Qg7 {[%clk 0:02:08.4]} 26. Qxg7+ {[%clk
0:01:46.7]} 26... Kxg7 {[%clk 0:02:08.6]} 27. Ne2 {[%clk 0:01:45.8]} 27... Rf8
{[%clk 0:02:04]} 28. Nf4 {[%clk 0:01:44.1]} 28... h6 {[%clk 0:02:00.7]} 29. Re1
{[%clk 0:01:42.1]} 29... Ne6 {[%clk 0:01:59.2]} 30. g3 {[%clk 0:01:40.3]} 30...
Nxf4 {[%clk 0:01:22.7]} 31. gxf4 {[%clk 0:01:41.2]} 31... Be6 {[%clk 0:01:23.5]}
32. Kf2 {[%clk 0:01:40.3]} 32... Rc8 {[%clk 0:01:23.3]} 33. Ke3 {[%clk
0:01:33.9]} 33... c5 {[%clk 0:01:23.4]} 34. Rg1 {[%clk 0:01:31.9]} 34... Kf7
{[%clk 0:01:23]} 35. Be2 {[%clk 0:01:17.6]} 35... cxd4+ {[%clk 0:01:22]} 36.
Kxd4 {[%clk 0:01:17.2]} 36... h5 {[%clk 0:01:21.5]} 37. Rd1 {[%clk 0:01:11.8]}
37... b6 {[%clk 0:01:20.6]} 38. Bf3 {[%clk 0:01:05.4]} 38... Rc5 {[%clk
0:01:20.8]} 39. b4 {[%clk 0:00:52.8]} 39... Rc4+ {[%clk 0:01:20.9]} 40. Ke3
{[%clk 0:00:49.4]} 40... Rxc3+ {[%clk 0:01:21]} 41. Rd3 {[%clk 0:00:49.5]} 41...
d4+ {[%clk 0:00:29.2]} 42. Kxd4 {[%clk 0:00:43.8]} 42... Rxd3+ {[%clk
0:00:29.3]} 43. Kxd3 {[%clk 0:00:44]} 43... Bxa2 {[%clk 0:00:30.2]} 44. Kd4
{[%clk 0:00:39.6]} 44... a5 {[%clk 0:00:25.9]} 45. bxa5 {[%clk 0:00:37.7]} 45...
bxa5 {[%clk 0:00:26.8]} 46. Bd5+ {[%clk 0:00:36.1]} 46... Bxd5 {[%clk
0:00:26.2]} 47. Kxd5 {[%clk 0:00:37]} 47... Ke7 {[%clk 0:00:22.3]} 48. Kc5
{[%clk 0:00:37.3]} 48... g5 {[%clk 0:00:22.9]} 49. fxg5 {[%clk 0:00:35.5]} 49...
f4 {[%clk 0:00:23.1]} 50. g6 {[%clk 0:00:34.5]} 50... f3 {[%clk 0:00:23.4]} 51.
g7 {[%clk 0:00:34.7]} 51... Kf7 {[%clk 0:00:23.3]} 52. Kd6 {[%clk 0:00:35.3]}
52... f2 {[%clk 0:00:22.5]} 53. e6+ {[%clk 0:00:35.5]} 53... Kxg7 {[%clk
0:00:22.2]} 54. e7 {[%clk 0:00:35.9]} 54... f1=Q {[%clk 0:00:18.3]} 55. e8=Q
{[%clk 0:00:36]} 55... Qf8+ {[%clk 0:00:13.5]} 56. Qxf8+ {[%clk 0:00:36.4]}
56... Kxf8 {[%clk 0:00:14.4]} 57. Kc5 {[%clk 0:00:37]} 57... Kf7 {[%clk
0:00:14.9]} 58. Kb5 {[%clk 0:00:37.6]} 58... Kf6 {[%clk 0:00:15.5]} 59. Kxa5
{[%clk 0:00:38.3]} 59... Kf5 {[%clk 0:00:16.1]} 60. Kb4 {[%clk 0:00:39.2]} 60...
Kg4 {[%clk 0:00:16.6]} 61. Kc3 {[%clk 0:00:40.1]} 61... Kxh4 {[%clk 0:00:17.2]}
62. Kd2 {[%clk 0:00:41]} 62... Kg3 {[%clk 0:00:17.5]} 63. Ke1 {[%clk 0:00:41.8]}
63... Kg2 {[%clk 0:00:17.9]} 64. Ke2 {[%clk 0:00:42.3]} 64... h4 {[%clk
0:00:18.5]} 65. Ke3 {[%clk 0:00:43.2]} 65... h3 {[%clk 0:00:19.1]} 66. Kf4
{[%clk 0:00:44.1]} 66... h2 {[%clk 0:00:19.8]} 0-1